bitfinex-derivatives/quotes_BTCF0:USTF0_20240814
["timestamp","ask_amount","ask_price","bid_price","bid_amount"]
[1723605532661,0.1134,60988.0,60986.0,0.04852533]
[1723605532965,0.1134,60988.0,60987.0,0.04852533]
[1723605533160,0.1134,60988.0,60985.0,0.04852533]
[1723605533865,0.128054,60989.0,60984.0,0.41032533]
[1723605534359,0.095956,60988.0,60985.0,0.001]
[1723605534761,0.081957,60987.0,60985.0,0.001]
[1723605535357,0.081957,60987.0,60985.0,0.002]
[1723605536065,0.014,60988.0,60985.0,0.001]
[1723605537661,0.081954,60989.0,60984.0,0.44508]
[1723605537862,0.081954,60989.0,60984.0,0.44276]
[1723605538262,0.014,60987.0,60985.0,0.001]
[1723605538671,0.00024599,60993.0,60984.0,0.3608]
[1723605538861,0.014,60988.0,60987.0,0.081956]
[1723605539167,0.028,60988.0,60987.0,0.13048133]
[1723605539363,0.028,60988.0,60987.0,0.081956]
[1723605540472,0.1120701,60988.0,60987.0,0.081956]
[1723605540763,0.1120701,60988.0,60987.0,0.442756]
[1723605540764,0.04056107,60988.0,60987.0,0.442756]
[1723605541758,0.04056107,60988.0,60987.0,0.443756]
[1723605542456,0.05456107,60988.0,60987.0,0.443756]
[1723605542665,0.04056107,60988.0,60987.0,0.443756]
[1723605544062,0.05456107,60988.0,60987.0,0.444756]
[1723605546068,0.15263117,60988.0,60987.0,0.444756]
[1723605547165,0.05456107,60988.0,60987.0,0.40028041]
[1723605548676,0.028,60988.0,60987.0,0.40028041]
[1723605549067,0.028,60988.0,60987.0,0.03948041]
[1723605549271,0.028,60988.0,60987.0,0.40028041]
[1723605550071,0.028,60988.0,60987.0,0.3628]
[1723605550262,0.109955,60988.0,60987.0,0.3628]
[1723605553268,0.109955,60988.0,60987.0,0.002]
[1723605553680,0.601875,60988.0,60987.0,0.002]
[1723605555480,0.66008981,60988.0,60987.0,0.002]
[1723605555666,0.63352454,60988.0,60987.0,0.002]
[1723605555974,0.66008981,60988.0,60987.0,0.002]
[1723605556580,0.16816981,60988.0,60987.0,0.002]
[1723605557173,0.28246865,60988.0,60987.0,0.002]
[1723605558271,0.28246865,60988.0,60981.0,0.00024599]
[1723605558272,0.081963,60982.0,60981.0,0.00024599]
[1723605558580,0.14017921,60982.0,60981.0,0.00024599]
[1723605558777,0.22214221,60982.0,60981.0,0.00024599]
[1723605559079,1.11410221,60982.0,60981.0,0.00024599]
[1723605559278,0.75422904,60982.0,60981.0,0.00020599]
[1723605559478,0.88485628,60982.0,60981.0,0.00020599]
[1723605559679,0.081968,60978.0,60977.0,0.3608]
[1723605559880,0.19634687,60978.0,60977.0,0.3608]
[1723605560067,0.10853642,60978.0,60977.0,0.3608]
[1723605560270,0.18031781,60978.0,60977.0,0.3608]
[1723605560977,0.31094505,60978.0,60977.0,0.3608]
[1723605561279,0.18031781,60978.0,60977.0,0.3608]
[1723605561481,0.19431781,60978.0,60977.0,0.3618]
[1723605562376,0.22677659,60978.0,60977.0,0.3618]
[1723605562584,0.095968,60978.0,60977.0,0.3628]
[1723605563378,0.109968,60978.0,60977.0,0.3628]
[1723605564178,0.11944991,60978.0,60977.0,0.3628]
[1723605564879,0.11944991,60978.0,60977.0,0.42749459]
[1723605565271,0.11944991,60978.0,60977.0,0.3628]
[1723605568578,0.11944991,60978.0,60977.0,0.002]
[1723605571888,0.23284991,60978.0,60977.0,0.002]
[1723605572680,0.23284991,60978.0,60977.0,0.05053824]
[1723605573285,0.23284991,60978.0,60977.0,0.002]
[1723605573286,0.31481791,60978.0,60977.0,0.002]
[1723605573494,0.16395,60973.0,60972.0,0.04855451]
[1723605573682,0.081978,60971.0,60970.0,0.04855451]
[1723605573875,0.081982,60968.0,60967.0,0.04855451]
[1723605574185,0.195382,60968.0,60967.0,0.04855451]
[1723605575185,0.195382,60968.0,60964.0,0.06473934]
[1723605575186,0.081986,60965.0,60964.0,0.06473934]
[1723605575386,0.195386,60965.0,60964.0,0.06473934]
[1723605575883,0.081986,60965.0,60964.0,0.06473934]
[1723605576199,0.081986,60965.0,60962.0,0.3608]
[1723605576200,0.081989,60963.0,60962.0,0.3608]
[1723605576392,0.10856254,60963.0,60962.0,0.3608]
[1723605577206,0.10856254,60963.0,60961.0,0.00024599]
[1723605577207,0.16398,60962.0,60961.0,0.00024599]
[1723605577383,0.16398,60962.0,60957.0,0.0986]
[1723605577384,0.16399,60958.0,60957.0,0.0495]
[1723605577586,0.082001,60954.0,60953.0,0.3608]
[1723605577892,0.14023393,60954.0,60953.0,0.3608]
[1723605578188,0.082001,60954.0,60953.0,0.3608]
[1723605578595,0.082001,60954.0,60952.0,0.04856057]
[1723605578596,0.082002,60953.0,60952.0,0.04856057]
[1723605578890,0.082007,60949.0,60948.0,0.04856057]
[1723605579186,0.082007,60949.0,60947.0,0.00024599]
[1723605579187,0.082009,60948.0,60947.0,0.00024599]
[1723605580595,0.083009,60948.0,60947.0,0.00924599]
[1723605580797,0.09266405,60948.0,60947.0,0.00924599]
[1723605583096,0.002,60948.0,60947.0,0.01424599]
[1723605586298,0.002,60948.0,60947.0,0.37504599]
[1723605586701,0.002,60948.0,60947.0,0.01424599]
[1723605586895,0.002,60948.0,60947.0,0.37504599]
[1723605587596,0.002,60948.0,60947.0,0.01424599]
[1723605587808,0.002,60948.0,60947.0,0.37504599]
[1723605596006,0.002,60948.0,60947.0,0.01424599]
[1723605597901,0.1154,60948.0,60947.0,0.01424599]
[1723605600202,0.197409,60948.0,60947.0,0.01424599]
[1723605613015,0.279418,60948.0,60947.0,0.01424599]
[1723605614116,0.082025,60936.0,60935.0,0.3608]
[1723605614316,0.195425,60936.0,60935.0,0.3608]
[1723605616912,0.195425,60936.0,60935.0,0.3688]
[1723605617116,0.197425,60936.0,60935.0,0.01]
[1723605620617,0.20706688,60936.0,60935.0,0.01]
[1723605635127,0.69938688,60936.0,60931.0,0.0476]
[1723605635425,0.69938688,60936.0,60929.0,0.00965154]
[1723605635426,0.082033,60930.0,60929.0,0.00016396]
[1723605638329,0.082033,60930.0,60929.0,0.36096396]
[1723605639126,0.082033,60930.0,60929.0,0.00016396]
[1723605639334,0.082033,60930.0,60929.0,0.36096396]
[1723605641228,0.084033,60930.0,60929.0,0.36196396]
[1723605642525,0.084033,60930.0,60929.0,0.00116396]
[1723605642727,0.084033,60930.0,60929.0,0.36196396]
[1723605642928,0.084033,60930.0,60929.0,0.00116396]
[1723605643128,0.084033,60930.0,60929.0,0.36196396]
[1723605643830,0.084033,60930.0,60929.0,0.00116396]
[1723605644132,0.084033,60930.0,60929.0,0.36196396]
[1723605644430,0.002,60930.0,60929.0,0.55739796]
[1723605644631,0.00964188,60936.0,60935.0,0.082026]
[1723605644828,0.1134,60937.0,60936.0,0.082025]
[1723605646128,0.1134,60939.0,60938.0,0.082022]
[1723605646329,0.42985,60941.0,60938.0,0.1134]
[1723605646625,0.8947,60958.0,60938.0,0.1134]
[1723605646626,0.081993,60960.0,60940.0,0.3608]
[1723605646826,0.3608,60974.0,60959.0,0.442794]
[1723605647132,0.081978,60971.0,60968.0,0.3608]
[1723605647319,0.091978,60971.0,60968.0,0.3608]
[1723605649032,0.119978,60971.0,60968.0,0.3608]
[1723605650434,0.1134,60969.0,60968.0,0.3608]
[1723605651133,0.19538,60969.0,60968.0,0.3608]
[1723605652730,0.22338,60969.0,60968.0,0.3628]
[1723605655839,0.22338,60969.0,60968.0,0.002]
[1723605657139,0.23338,60969.0,60968.0,0.002]
[1723605660340,0.23338,60969.0,60963.0,0.00024599]
[1723605660532,0.1134,60965.0,60963.0,0.00024599]
[1723605661132,0.081987,60964.0,60963.0,0.00024599]
[1723605661642,0.081987,60964.0,60963.0,0.00124599]
[1723605663043,0.081987,60964.0,60963.0,0.00024599]
[1723605663235,0.095987,60964.0,60963.0,0.00024599]
[1723605664342,0.106987,60964.0,60963.0,0.00124599]
[1723605666136,0.1652243,60964.0,60963.0,0.0011214]
[1723605666733,0.17511226,60964.0,60963.0,0.0011214]
[1723605668041,0.11687496,60964.0,60963.0,0.0011214]
[1723605673745,0.47767496,60964.0,60963.0,0.0011214]
[1723605674542,0.55966196,60964.0,60963.0,0.0011214]
[1723605675148,0.47767496,60964.0,60963.0,0.0011214]
[1723605675547,0.47767496,60964.0,60963.0,0.04956864]
[1723605676046,0.53591495,60964.0,60963.0,0.0011214]
[1723605676742,0.65804262,60964.0,60957.0,0.0477]
[1723605676943,0.195395,60958.0,60957.0,0.0477]
[1723605677250,0.25363499,60958.0,60957.0,0.0477]
[1723605678149,0.22197176,60958.0,60957.0,0.0477]
[1723605678348,0.22897176,60958.0,60957.0,0.0477]
[1723605678550,0.202395,60958.0,60957.0,0.0477]
[1723605678749,0.22897182,60958.0,60957.0,0.0477]
[1723605679655,0.23297187,60958.0,60957.0,0.0477]
[1723605679954,0.23297187,60958.0,60954.0,0.3608]
[1723605679955,0.081999,60955.0,60954.0,0.3608]
[1723605680157,0.22197587,60955.0,60954.0,0.3608]
[1723605681153,0.195399,60955.0,60954.0,0.3608]
[1723605681347,0.22197683,60955.0,60954.0,0.3608]
[1723605682757,0.082002,60953.0,60951.0,0.049]
[1723605682959,0.1802993,60953.0,60952.0,0.4081]
[1723605683151,0.1802993,60953.0,60952.0,0.53301998]
[1723605683152,0.082002,60953.0,60952.0,0.53301998]
[1723605683353,0.164004,60953.0,60952.0,0.0473]
[1723605683657,0.164004,60953.0,60952.0,0.11234549]
[1723605683848,0.164004,60953.0,60952.0,0.0473]
[1723605684045,0.164004,60953.0,60951.0,0.11404549]
[1723605684046,0.082003,60952.0,60951.0,0.06504549]
[1723605684356,0.082005,60951.0,60950.0,0.06504549]
[1723605684557,0.195405,60951.0,60950.0,0.06504549]
[1723605684958,0.08201,60947.0,60946.0,0.3608]
[1723605685158,0.19541,60947.0,60946.0,0.3608]
[1723605686258,0.19741,60947.0,60946.0,0.3608]
[1723605686959,0.19741,60947.0,60944.0,0.08127356]
[1723605687155,0.19741,60947.0,60944.0,0.44207356]
[1723605688159,0.082011,60946.0,60944.0,0.3608]
[1723605688561,0.082011,60946.0,60944.0,0.44207356]
[1723605689161,0.082011,60946.0,60944.0,0.3608]
[1723605689462,0.082013,60945.0,60944.0,0.3608]
[1723605696556,0.082014,60944.0,60943.0,0.1419]
[1723605696762,0.195414,60944.0,60943.0,0.5027]
[1723605697260,0.195414,60944.0,60943.0,0.1419]
[1723605697459,0.277428,60944.0,60943.0,0.3608]
[1723605697662,0.4742,60944.0,60937.0,0.41024]
[1723605697865,0.195422,60938.0,60937.0,0.408]
[1723605700869,0.195422,60938.0,60937.0,0.0472]
[1723605701060,0.196422,60938.0,60937.0,0.0632]
[1723605703869,0.20617428,60938.0,60937.0,0.0632]
[1723605705965,0.12415228,60938.0,60937.0,0.0632]
[1723605707468,0.20617428,60938.0,60937.0,0.0632]
[1723605707770,0.20617428,60938.0,60937.0,0.016]
[1723605712874,0.20617428,60938.0,60937.0,0.3768]
[1723605715277,0.20617428,60938.0,60937.0,0.016]
[1723605717872,0.001,60938.0,60937.0,1.02172]
[1723605718074,0.001,60938.0,60937.0,1.103743]
[1723605718872,0.1144,60938.0,60937.0,0.3768]
[1723605719786,0.1144,60938.0,60937.0,0.50174923]
[1723605720576,0.17990934,60938.0,60937.0,0.3768]
[1723605720977,0.17990934,60938.0,60937.0,0.4239]
[1723605722272,0.1144,60938.0,60937.0,0.4239]
[1723605722675,0.17992435,60938.0,60937.0,0.4239]
[1723605724081,0.1144,60938.0,60937.0,0.4239]
[1723605724881,0.1144,60938.0,60937.0,0.4721]
[1723605725475,0.1144,60938.0,60937.0,0.1113]
[1723605725676,0.1144,60938.0,60937.0,0.4721]
[1723605726482,0.196422,60938.0,60937.0,0.3768]
[1723605727280,0.27830868,60938.0,60937.0,0.3768]
[1723605727782,0.27730868,60938.0,60937.0,0.3608]
[1723605727980,0.27730868,60938.0,60937.0,0.3618]
[1723605728184,0.22200786,60938.0,60937.0,0.3618]
[1723605728381,0.22200788,60938.0,60937.0,0.3608]
[1723605728580,0.22200788,60938.0,60933.0,0.04875742]
[1723605728581,0.082027,60934.0,60933.0,0.0976452]
[1723605728780,0.195427,60934.0,60933.0,0.22260952]
[1723605728980,0.195427,60934.0,60933.0,0.12496432]
[1723605730888,0.196427,60934.0,60933.0,0.12996432]
[1723605731084,0.196427,60934.0,60933.0,0.13096432]
[1723605737483,0.196427,60934.0,60933.0,0.13096075]
[1723605737691,0.196427,60934.0,60933.0,0.13096022]
[1723605740391,0.1144,60934.0,60933.0,0.13096022]
[1723605740892,0.196427,60934.0,60933.0,0.13096022]
[1723605745697,0.1144,60934.0,60933.0,0.13096022]
[1723605745886,0.001,60934.0,60933.0,0.13096022]
[1723605746193,0.1144,60934.0,60933.0,0.13096022]
[1723605746390,0.1144,60934.0,60933.0,0.21298922]
[1723605747096,0.1144,60934.0,60933.0,0.088029]
[1723605748993,0.1144,60934.0,60933.0,0.448829]
[1723605749598,0.1144,60934.0,60933.0,0.088029]
[1723605749798,0.1144,60934.0,60933.0,0.448829]
[1723605752389,0.1144,60934.0,60933.0,0.088029]
[1723605752595,0.1144,60934.0,60933.0,0.448829]
[1723605753296,0.1144,60934.0,60933.0,0.088029]
[1723605753603,0.1144,60934.0,60933.0,0.448829]
[1723605754302,0.1144,60934.0,60933.0,0.088029]
[1723605754502,0.1144,60934.0,60933.0,0.448829]
[1723605755507,0.1144,60934.0,60933.0,0.088029]
[1723605756205,0.1144,60934.0,60933.0,0.448829]
[1723605764911,0.1144,60934.0,60933.0,0.088029]
[1723605769708,0.196427,60934.0,60933.0,0.006]
[1723605772308,0.08203,60932.0,60931.0,0.3608]
[1723605772514,0.1134,60932.0,60931.0,0.3608]
[1723605774815,0.1164,60932.0,60931.0,0.3618]
[1723605776312,0.1164,60932.0,60931.0,0.001]
[1723605776514,0.1164,60932.0,60931.0,0.083031]
[1723605776713,0.1164,60932.0,60931.0,0.443831]
[1723605777320,0.1164,60932.0,60931.0,0.083031]
[1723605777516,0.31645,60961.0,60932.0,0.49236]
[1723605777718,0.1134,60949.0,60948.0,0.082008]
[1723605778411,0.1134,60952.0,60947.0,0.1134]
[1723605778617,0.1134,60952.0,60951.0,0.3608]
[1723605780811,0.1274,60952.0,60951.0,0.3608]
[1723605781219,0.1414,60952.0,60951.0,0.3608]
[1723605781817,0.15092478,60952.0,60951.0,0.3608]
[1723605783818,0.15092478,60952.0,60948.0,0.082008]
[1723605784020,0.1134,60949.0,60948.0,0.082008]
[1723605784821,0.1134,60949.0,60948.0,0.442808]
[1723605786520,0.1254,60949.0,60948.0,0.442808]
[1723605787022,0.1254,60949.0,60948.0,0.443808]
[1723605789018,0.1254,60949.0,60948.0,0.442808]
[1723605789826,0.1394,60949.0,60948.0,0.443808]
[1723605791323,0.026,60949.0,60948.0,0.443808]
[1723605791517,0.1394,60949.0,60948.0,0.443808]
[1723605796028,0.00952478,60952.0,60948.0,0.443808]
[1723605796225,0.082,60955.0,60950.0,0.06483278]
[1723605796428,0.082,60955.0,60953.0,0.40942535]
[1723605796824,0.09178987,60955.0,60954.0,0.04862535]
[1723605797024,0.09178987,60955.0,60953.0,0.40942535]
[1723605797225,0.09178987,60955.0,60954.0,0.04862535]
[1723605797527,0.20518987,60955.0,60954.0,0.04862535]
[1723605797936,0.12318987,60955.0,60954.0,0.04862535]
[1723605798134,0.1274,60955.0,60953.0,0.42663278]
[1723605799234,0.1274,60955.0,60954.0,0.06483278]
[1723605799630,0.1134,60955.0,60954.0,0.06483278]
[1723605799834,0.1134,60955.0,60953.0,0.42563278]
[1723605800037,0.1134,60955.0,60953.0,0.3608]
[1723605800431,0.1134,60955.0,60953.0,0.42563278]
[1723605800829,0.1134,60955.0,60953.0,0.42663278]
[1723605801026,0.1134,60955.0,60953.0,0.42763278]
[1723605801234,0.00024599,60956.0,60953.0,0.42763278]
[1723605801438,0.1134,60954.0,60953.0,0.42769411]
[1723605802332,0.1134,60954.0,60953.0,0.3628]
[1723605804226,0.1184,60954.0,60953.0,0.3628]
[1723605804535,0.1184,60954.0,60953.0,0.3618]
[1723605804938,0.01124599,60956.0,60955.0,0.081999]
[1723605805230,0.081978,60971.0,60962.0,0.081989]
[1723605805436,0.1134,60963.0,60962.0,0.081989]
[1723605805641,0.1134,60963.0,60962.0,0.64891131]
[1723605805938,0.1134,60963.0,60962.0,0.648884]
[1723605806328,0.1134,60963.0,60962.0,0.48569625]
[1723605806528,0.1134,60963.0,60962.0,0.56692696]
[1723605807037,0.1184,60963.0,60962.0,0.56792696]
[1723605807436,0.1184,60963.0,60962.0,0.48669625]
[1723605807626,0.1184,60963.0,60962.0,0.48769625]
[1723605810637,0.12807813,60963.0,60962.0,0.48769625]
[1723605811029,0.12807813,60963.0,60962.0,0.3628]
[1723605816537,0.1184,60963.0,60962.0,0.3628]
[1723605816740,0.18382779,60963.0,60962.0,0.44479]
[1723605818141,0.20007312,60963.0,60962.0,0.44479]
[1723605820336,0.08667312,60963.0,60962.0,0.44479]
[1723605820537,0.005,60963.0,60962.0,0.44479]
[1723605820740,0.08167312,60966.0,60965.0,0.081986]
[1723605821043,0.00024599,60969.0,60962.0,0.3628]
[1723605821044,0.08167312,60967.0,60966.0,0.081984]
[1723605821239,0.00024599,60969.0,60964.0,0.1134]
[1723605821240,0.08167312,60968.0,60967.0,0.081983]
[1723605821441,0.08191911,60969.0,60968.0,0.081982]
[1723605822145,0.08191911,60969.0,60968.0,0.127282]
[1723605823954,0.08191911,60969.0,60968.0,0.128282]
[1723605824846,0.08191911,60969.0,60968.0,0.129282]
[1723605827345,0.08191911,60969.0,60968.0,0.002]
[1723605827551,0.16389911,60969.0,60968.0,0.002]
[1723605828147,0.08222599,60969.0,60968.0,0.002]
[1723605831848,0.09195489,60969.0,60968.0,0.002]
[1723605833653,0.00997489,60969.0,60968.0,0.3628]
[1723605833851,0.00024599,60969.0,60968.0,0.68306065]
[1723605834153,0.00963845,60975.0,60968.0,1.58641865]
[1723605834452,0.081964,60981.0,60974.0,0.3608]
[1723605834653,0.111964,60981.0,60980.0,0.3608]
[1723605834848,0.12162615,60981.0,60980.0,0.3608]
[1723605835053,0.09162615,60981.0,60980.0,0.4421523]
[1723605835450,0.20502615,60981.0,60980.0,0.3608]
[1723605836049,0.20502615,60981.0,60980.0,0.3628]
[1723605841159,0.26324221,60981.0,60980.0,0.3628]
[1723605843162,0.18127821,60981.0,60980.0,0.3628]
[1723605844560,0.18127804,60981.0,60980.0,0.3628]
[1723605845663,0.06787804,60981.0,60980.0,0.558165]
[1723605845859,0.02656576,60981.0,60980.0,0.558165]
[1723605846164,0.02656325,60986.0,60985.0,0.081959]
[1723605846461,0.098073,60986.0,60985.0,0.556159]
[1723605846669,0.02656292,60986.0,60985.0,0.442759]
[1723605846859,0.12463592,60986.0,60985.0,0.442759]
[1723605847663,0.12463592,60986.0,60985.0,0.443759]
[1723605848369,0.11364599,60987.0,60986.0,0.081957]
[1723605849363,0.00024599,60987.0,60986.0,0.195357]
[1723605849972,0.00024599,60987.0,60986.0,0.2777093]
[1723605850171,0.00024599,60987.0,60986.0,0.196357]
[1723605851065,0.00024599,60987.0,60986.0,0.197357]
[1723605853668,0.11364599,60987.0,60986.0,0.002]
[1723605856357,0.08194125,60987.0,60986.0,0.002]
[1723605857264,0.08194125,60987.0,60986.0,0.083957]
[1723605857466,0.08194125,60987.0,60986.0,0.002]
[1723605858465,0.00024599,60987.0,60986.0,0.002]
[1723605859160,0.02680835,60987.0,60986.0,0.002]
[1723605860474,0.02680835,60987.0,60986.0,0.0509]
[1723605860975,0.02680835,60987.0,60986.0,0.493657]
[1723605861171,0.02680835,60987.0,60986.0,0.607057]
[1723605861382,0.08191257,60987.0,60986.0,0.607057]
[1723605861675,0.00024599,60987.0,60986.0,0.607057]
[1723605862973,0.02680714,60987.0,60986.0,0.607057]
[1723605863374,0.00024599,60987.0,60986.0,0.73189879]
[1723605865472,0.0471,60996.0,60989.0,0.081953]
[1723605865672,0.1134,60993.0,60992.0,0.08123155]
[1723605865873,0.1134,60993.0,60992.0,0.20606848]
[1723605866079,0.1134,60993.0,60992.0,0.08123155]
[1723605866375,0.1134,60993.0,60991.0,0.44203155]
[1723605867473,0.1134,60993.0,60992.0,0.08123155]
[1723605867674,0.1134,60993.0,60992.0,0.08223155]
[1723605867874,0.1134,60993.0,60992.0,0.001]
[1723605868277,0.1134,60993.0,60991.0,0.44627155]
[1723605868474,0.1134,60993.0,60991.0,0.44403155]
[1723605868889,0.1134,60993.0,60992.0,0.001]
[1723605869475,0.1134,60993.0,60992.0,0.08223155]
[1723605870485,0.1134,60993.0,60992.0,0.08323155]
[1723605871082,0.1134,60993.0,60992.0,0.20807018]
[1723605871388,0.1134,60993.0,60992.0,0.20807348]
[1723605872386,0.1134,60993.0,60992.0,0.21756705]
[1723605873189,0.1134,60993.0,60992.0,0.1363322]
[1723605873891,0.00996799,60996.0,60995.0,0.081945]
[1723605874192,0.00024599,60998.0,60997.0,0.081943]
[1723605874376,0.00024599,60998.0,60997.0,0.56757839]
[1723605874784,0.00024599,60998.0,60997.0,0.66506594]
[1723605874983,0.00024599,60998.0,60997.0,0.56757839]
[1723605875183,0.00024599,60998.0,60997.0,0.66505245]
[1723605876402,0.11364599,60998.0,60997.0,0.66505245]
[1723605876779,0.00024599,60998.0,60997.0,0.66605245]
[1723605877186,0.00024599,60998.0,60997.0,0.66705245]
[1723605877385,0.00024599,60998.0,60997.0,0.56955815]
[1723605877691,0.1134,61003.0,61002.0,0.081936]
[1723605877887,0.1134,61003.0,61002.0,0.52393417]
[1723605878187,0.4082,61014.0,61002.0,0.3608]
[1723605878485,0.17968086,61010.0,61008.0,0.38718719]
[1723605878688,0.13894823,61009.0,61008.0,0.38718719]
[1723605879081,0.21204301,61009.0,61008.0,0.38718719]
[1723605879281,0.38434673,61009.0,61008.0,0.30526019]
[1723605879481,0.22087423,61009.0,61003.0,0.0479]
[1723605879692,0.1134,61004.0,61003.0,0.0479]
[1723605879881,0.37746197,61004.0,61003.0,0.0479]
[1723605880586,0.37746197,61004.0,61003.0,0.4087]
[1723605881190,0.37746197,61004.0,61003.0,0.4097]
[1723605881375,0.23033236,61004.0,61003.0,0.4097]
[1723605881783,0.23033236,61004.0,61003.0,0.4107]
[1723605882180,0.18006134,61004.0,61003.0,0.4107]
[1723605883088,0.06666134,61004.0,61003.0,0.492634]
[1723605883385,0.02655464,61004.0,61003.0,0.492634]
[1723605883590,0.1572439,61004.0,61003.0,0.492634]
[1723605883786,0.1973506,61004.0,61003.0,0.492634]
[1723605884181,0.06666134,61004.0,61003.0,0.492634]
[1723605885387,0.1134,61005.0,61003.0,0.61744211]
[1723605885688,0.1134,61005.0,61004.0,0.081933]
[1723605886691,0.1134,61005.0,61003.0,0.49409757]
[1723605886692,0.195332,61005.0,61003.0,0.41302]
[1723605886897,0.195332,61005.0,61003.0,0.4107]
[1723605887389,0.195332,61005.0,61004.0,0.001]
[1723605890288,0.195332,61005.0,61004.0,0.002]
[1723605890488,0.195332,61005.0,61004.0,0.06688637]
[1723605890689,0.556132,61005.0,61004.0,0.002]
[1723605891092,0.638064,61005.0,61004.0,0.002]
[1723605891594,0.638064,61005.0,61000.0,0.06488637]
[1723605891595,1.36596,61005.0,61000.0,0.04867953]
[1723605891783,1.36596,61005.0,60989.0,0.09747406]
[1723605891784,0.1134,61003.0,60995.0,0.04870748]
[1723605891990,0.1134,60994.0,60992.0,0.04871508]
[1723605892190,0.442744,60996.0,60989.0,0.04871508]
[1723605892191,0.081952,60990.0,60989.0,0.04871508]
[1723605892384,0.081952,60990.0,60988.0,0.04871508]
[1723605892385,0.081953,60989.0,60988.0,0.04871508]
[1723605892591,0.245253,60989.0,60988.0,0.04871508]
[1723605893382,0.081961,60983.0,60982.0,0.36104599]
[1723605895598,0.081961,60983.0,60982.0,0.36204599]
[1723605896490,0.083961,60983.0,60982.0,0.36104599]
[1723605896986,0.058961,60983.0,60982.0,0.36104599]
[1723605899292,0.058961,60983.0,60982.0,0.00024599]
[1723605903296,0.002,60983.0,60982.0,0.00024599]
[1723605903499,0.002,60983.0,60982.0,0.06515664]
[1723605903803,0.081956,60988.0,60982.0,0.15694324]
[1723605904006,0.00984352,60989.0,60985.0,0.40938346]
[1723605904007,0.081956,60987.0,60985.0,0.40938346]
[1723605904211,0.081956,60987.0,60985.0,0.3608]
[1723605906101,0.00984352,60989.0,60985.0,0.3608]
[1723605906102,0.081957,60986.0,60985.0,0.3608]
[1723605906303,0.081957,60986.0,60985.0,0.40938346]
[1723605907209,0.081957,60986.0,60985.0,0.3608]
[1723605907511,0.081959,60985.0,60982.0,0.04882945]
[1723605908303,0.081961,60983.0,60982.0,0.04882945]
[1723605908505,0.081961,60983.0,60982.0,0.00024599]
[1723605909294,0.081961,60983.0,60982.0,0.00124599]
[1723605910101,0.081961,60983.0,60982.0,0.04982945]
[1723605910302,0.081961,60983.0,60982.0,0.00124599]
[1723605910606,0.09163619,60983.0,60982.0,0.04982945]
[1723605910908,0.31645,60994.0,60993.0,0.081948]
[1723605911108,0.081935,61003.0,60994.0,0.081947]
[1723605911311,0.081936,61002.0,60994.0,0.177347]
[1723605911504,0.081936,61002.0,60994.0,0.0954]
[1723605911705,0.081936,61002.0,60998.0,0.3608]
[1723605911912,0.081936,61002.0,60999.0,0.0463]
[1723605913404,0.081936,61002.0,60999.0,0.001]
[1723605913610,0.081936,61002.0,60999.0,0.002]
[1723605914113,0.3608,61004.0,60999.0,0.002]
[1723605914814,0.3608,61004.0,61000.0,0.04858]
[1723605915713,0.3608,61004.0,60999.0,0.083939]
[1723605915714,0.3608,61004.0,61001.0,0.04858]
[1723605916108,0.3608,61004.0,61002.0,0.04858]
[1723605916820,0.3608,61004.0,61001.0,0.04858]
[1723605917113,0.3608,61004.0,61001.0,0.04958]
[1723605917709,0.3608,61004.0,61002.0,0.001]
[1723605918110,0.3608,61004.0,61002.0,0.04958]
[1723605919313,0.3608,61004.0,61003.0,0.04858]
[1723605920617,0.3608,61004.0,61003.0,0.04958]
[1723605920812,0.3608,61004.0,61003.0,0.001]
[1723605921212,0.3608,61004.0,61003.0,0.04958]
[1723605921615,0.3608,61004.0,61003.0,0.001]
[1723605922321,0.3608,61004.0,61003.0,0.002]
[1723605922715,0.3608,61004.0,61003.0,0.05058]
[1723605923412,0.3608,61004.0,61003.0,0.002]
[1723605924117,0.0087535,61007.0,61006.0,0.08193]
[1723605924316,0.00024599,61007.0,61006.0,0.08193]
[1723605924912,0.00024599,61007.0,61006.0,0.17733]
[1723605925221,0.3608,61019.0,61011.0,0.081923]
[1723605925525,0.081917,61016.0,61011.0,0.49130139]
[1723605925822,0.081917,61016.0,61011.0,0.40937839]
[1723605925823,0.08192,61014.0,61011.0,0.40937839]
[1723605926015,0.081917,61016.0,61011.0,0.40937839]
[1723605926615,0.081917,61016.0,61011.0,0.3608]
[1723605926817,0.081917,61016.0,61011.0,0.3618]
[1723605928419,0.081917,61016.0,61011.0,0.3628]
[1723605930215,0.081917,61016.0,61011.0,0.002]
[1723605930411,0.36929567,61019.0,61011.0,0.002]
[1723605930412,0.08192,61014.0,61011.0,0.002]
[1723605930712,0.02655338,61013.0,61011.0,0.002]
[1723605931822,0.02655338,61013.0,61011.0,0.001]
[1723605932022,0.09785664,61012.0,61011.0,0.002]
[1723605933014,0.09785664,61012.0,61011.0,0.001]
[1723605933214,0.09785664,61012.0,61011.0,0.002]
[1723605935516,0.02655338,61012.0,61011.0,0.002]
[1723605936435,0.02655338,61017.0,61011.0,0.002]
[1723605936726,0.05818856,61016.0,61011.0,0.002]
[1723605936919,0.05818856,61015.0,61011.0,0.002]
[1723605937230,0.07818856,61015.0,61011.0,0.002]
[1723605937521,0.081921,61013.0,61011.0,0.002]
[1723605937723,0.02655329,61012.0,61011.0,0.002]
[1723605938613,0.081921,61013.0,61011.0,0.05057839]
[1723605939421,0.081921,61013.0,61011.0,0.04957839]
[1723605939622,0.081921,61013.0,61012.0,0.04857839]
[1723605940527,0.081921,61013.0,61011.0,0.06677118]
[1723605940726,0.081921,61013.0,61012.0,0.001]
[1723605942522,0.081921,61013.0,61011.0,0.06677118]
[1723605942922,0.081921,61013.0,61012.0,0.001]
[1723605943322,0.081921,61013.0,61012.0,0.002]
[1723605945730,0.14010978,61013.0,61012.0,0.002]
[1723605947928,0.22177439,61013.0,61012.0,0.002]
[1723605952435,0.02655339,61013.0,61012.0,0.002]